fUST/lending_fUST_20240225
["ID","MTS","AMOUNT","RATE_DAILY","PERIOD"]
[315090224,1708810250295,-3346.27,0.00022306,2]
[315090226,1708810250304,-527.93,0.00022306,2]
[315090228,1708810250314,-673.95,0.00022306,2]
[315090230,1708810250323,-5423.92,0.00022306,2]
[315090232,1708810250332,-1340.16,0.00022306,2]
[315090234,1708810250341,-1156.55,0.00022307,2]
[315090236,1708810250353,-960.75,0.00022307,2]
[315090238,1708810250362,-1434.42,0.00022307,2]
[315090240,1708810250371,-754.69,0.00022307,2]
[315090242,1708810250380,-1343.12,0.00022307,2]
[315090244,1708810250389,-500.0,0.00022307,2]
[315090246,1708810250398,-500.0,0.00022308,2]
[315090248,1708810250407,-648.89,0.00022308,2]
[315090250,1708810250419,-1247.66,0.00022308,2]
[315090251,1708810250428,-1143.36,0.00022308,2]
[315090253,1708810250438,-1404.07,0.00022308,2]
[315090256,1708810250448,-4699.89,0.00022308,2]
[315090258,1708810250458,-500.0,0.00022308,2]
[315090259,1708810250467,-2149.58,0.00022308,2]
[315090261,1708810250477,-500.0,0.00022309,2]
[315090263,1708810250486,-500.0,0.00022309,2]
[315090266,1708810250496,-500.0,0.00022309,2]
[315090267,1708810250505,-36160.2882522,0.0002231,2]
[315096617,1708810363424,18402.55782208,0.0003,120]
[315096618,1708810363474,307106.07728859,0.0003,120]
[315096619,1708810363496,800000.0,0.0003,120]
[315096621,1708810933570,-572.41117298,0.00027225,60]
[315096622,1708810933595,-500.0,0.00027225,120]
[315096623,1708811237130,-5695.8429059,0.00018563,2]
[315096624,1708811237153,-208.31242,0.00019178,2]
[315096625,1708811237176,-166.666666,0.00019178,2]
[315096626,1708811237195,-169.168725,0.00019178,2]
[315096627,1708811237216,-500.0,0.00019564,2]
[315096628,1708811237238,-741.01631053,0.00019564,2]
[315096661,1708811432844,-497.96942966,0.00019555,3]
[315096663,1708811432856,-1396.20802062,0.00019555,3]
[315096758,1708811438625,-414.33254972,0.00019555,3]
[315096759,1708811438637,-212.55926004,0.00019563,2]
[315096760,1708811438646,-500.0,0.00019564,2]
[315096761,1708811438656,-500.0,0.00019564,2]
[315096762,1708811438667,-500.0,0.00019564,2]
[315096763,1708811438677,-500.0,0.00019564,2]
[315096764,1708811438687,-488.74939134,0.00019564,2]
[315096765,1708811438697,-684.25,0.00019564,2]
[315096766,1708811438708,-500.0,0.00019564,2]
[315096767,1708811438717,-450.74621806,0.00019564,2]
[315096768,1708811438727,-582.07938492,0.00019564,2]
[315096769,1708811438737,-197.68048017,0.00019564,2]
[315096770,1708811438747,-580.95846436,0.00019564,2]
[315096771,1708811438756,-587.92163743,0.00019564,2]
[315096772,1708811438766,-500.0,0.00019564,2]
[315096773,1708811438777,-500.0,0.00019564,2]
[315096774,1708811438786,-500.0,0.00019564,2]
[315096775,1708811438795,-787.46,0.00019564,2]
[315096776,1708811438805,-500.0,0.00019564,2]
[315096777,1708811438815,-500.0,0.00019564,2]
[315096778,1708811438824,-500.0,0.00019564,2]
[315096779,1708811438834,-500.0,0.00019564,2]
[315096780,1708811438844,-500.0,0.00019564,2]
[315096781,1708811438854,-500.0,0.00019564,2]
[315096782,1708811438864,-368.38255985,0.00019564,2]
[315096783,1708811438873,-500.0,0.00019564,2]
[315096784,1708811438883,-500.0,0.00019564,2]
[315096785,1708811438892,-5695.56,0.00019564,2]
[315096786,1708811438902,-733.68,0.00019564,2]
[315096787,1708811438912,-501.14513098,0.00019564,2]
[315096788,1708811438922,-500.0,0.00019564,2]
[315096789,1708811438930,-500.0,0.00019564,2]
[315096790,1708811438940,-500.0,0.00019564,2]
[315096791,1708811438949,-500.0,0.00019564,2]
[315096792,1708811438959,-500.0,0.00019564,2]
[315096793,1708811438969,-500.0,0.00019564,2]
[315096794,1708811438978,-500.0,0.00019564,2]
[315096795,1708811438988,-821.94,0.00019564,2]
[315096796,1708811438997,-500.0,0.00019564,2]
[315096797,1708811439007,-504.0,0.00019564,2]
[315096798,1708811439018,-500.0,0.00019564,2]
[315096799,1708811439031,-6511.95,0.00019564,2]
[315096800,1708811439040,-500.0,0.00019564,2]
[315096801,1708811439051,-500.0,0.00019564,2]
[315096802,1708811439060,-500.0,0.00019564,2]
[315096803,1708811439070,-500.0,0.00019564,2]
[315096804,1708811439080,-501.12884996,0.00019564,2]
[315096805,1708811439092,-500.0,0.00019564,2]
[315096806,1708811439104,-500.0,0.00019564,2]
[315096807,1708811439114,-500.0,0.00019564,2]
[315096808,1708811439124,-500.0,0.00019564,2]
[315096809,1708811439133,-500.0,0.00019564,2]
[315096810,1708811439143,-500.0,0.00019564,2]
[315096811,1708811439153,-500.0,0.00019564,2]
[315096812,1708811439163,-603.53,0.00019564,2]
[315096813,1708811439173,-500.0,0.00019564,2]
[315096814,1708811439182,-178.45790068,0.00019564,2]
[315096815,1708811439191,-544.65,0.00019564,2]
[315096816,1708811439200,-500.0,0.00019564,2]
[315096817,1708811439210,-329.54486561,0.00019564,2]
[315096818,1708811439220,-500.0,0.00019564,2]
[315096819,1708811439229,-3284.78,0.00019564,2]
[315096820,1708811439238,-500.73890454,0.00019564,2]
[315096821,1708811439247,-500.0,0.00019564,2]
[315096822,1708811439256,-500.0,0.00019564,2]
[315096823,1708811439266,-5628.84,0.00019564,2]
[315096824,1708811439277,-500.0,0.00019564,2]
[315096825,1708811439286,-442.29339746,0.00019564,2]
[315096826,1708811439297,-500.0,0.00019564,2]
[315096827,1708811439307,-500.0,0.00019564,2]
[315096828,1708811439317,-1312.47,0.00019564,2]
[315096829,1708811439326,-500.0,0.00019564,2]
[315096830,1708811439337,-500.0,0.00019564,2]
[315096831,1708811439346,-500.0,0.00019564,2]
[315096832,1708811439357,-500.0,0.00019564,2]
[315096833,1708811439366,-500.0,0.00019564,2]
[315096834,1708811439376,-500.0,0.00019564,2]
[315096835,1708811439386,-768.71,0.00019564,2]
[315096836,1708811439395,-1240.38,0.00019564,2]
[315096837,1708811439405,-500.0,0.00019564,2]
[315096838,1708811439415,-500.0,0.00019564,2]
[315096839,1708811439424,-500.96626582,0.00019564,2]
[315096840,1708811439434,-500.0,0.00019564,2]
[315096841,1708811439443,-300.0,0.00019565,2]
[315096842,1708811439454,-500.0,0.00019565,2]
[315096843,1708811439463,-151.0,0.00019565,2]
[315096844,1708811439472,-501.4774535,0.00019565,2]
[315096845,1708811439483,-500.0,0.00019565,2]
[315096846,1708811439492,-500.0,0.00019565,2]
[315096847,1708811439502,-500.0,0.00019565,2]
[315096848,1708811439511,-614.57,0.00019565,2]
[315096849,1708811439520,-500.0,0.00019565,2]
[315096850,1708811439530,-500.0,0.00019565,2]
[315096851,1708811439539,-513.35575902,0.00019565,2]
[315096852,1708811439548,-500.0,0.00019565,2]
[315096853,1708811439557,-500.0,0.00019565,2]
[315096854,1708811439569,-500.0,0.00019565,2]
[315096855,1708811439585,-500.0,0.00019565,2]
[315096856,1708811439598,-500.0,0.00019565,2]
[315096857,1708811439610,-500.32163985,0.00019565,2]
[315096858,1708811439623,-1001.4898384,0.00019565,2]
[315096859,1708811439636,-500.0,0.00019565,2]
[315096860,1708811439649,-308.74436964,0.00019565,2]
[315096861,1708811439658,-480.17410999,0.00019565,2]
[315096862,1708811439669,-584.40042773,0.00019565,2]
[315096863,1708811439683,-500.39871675,0.00019565,2]
[315096864,1708811439696,-500.0,0.00019565,2]
[315096865,1708811439707,-1038.2,0.00019565,2]
[315096866,1708811439721,-500.0,0.00019565,2]
[315096867,1708811439735,-640.08522853,0.00019565,2]
[315096868,1708811439747,-500.0,0.00019565,2]
[315096869,1708811439762,-500.46559862,0.00019565,2]
[315096870,1708811439775,-500.0,0.00019565,2]
[315096871,1708811439786,-500.0,0.00019565,2]
[315096872,1708811439798,-500.0,0.00019565,2]
[315096873,1708811439810,-526.54483055,0.00019565,2]
[315096874,1708811439820,-500.0,0.00019565,2]
[315096875,1708811439832,-500.0,0.00019565,2]
[315096876,1708811439846,-500.0,0.00019565,2]
[315096877,1708811439858,-500.0,0.00019565,2]
[315096878,1708811439870,-500.0,0.00019565,2]
[315096879,1708811439883,-355.07638168,0.00019565,2]
[315096880,1708811439895,-500.0,0.00019565,2]
[315096881,1708811439907,-500.0,0.00019565,2]
[315096882,1708811439920,-500.0,0.00019565,2]
[315096883,1708811439932,-500.58320091,0.00019565,2]
[315096884,1708811439944,-264.45911542,0.00019565,2]
[315096885,1708811439955,-500.0,0.00019565,2]
[315096886,1708811439965,-500.04057493,0.00019565,2]
[315096887,1708811439976,-500.0,0.00019565,2]
[315096888,1708811439988,-500.32198171,0.00019565,2]
[315096889,1708811440002,-500.0,0.00019565,2]
[315096890,1708811440014,-500.0,0.00019565,2]
[315096891,1708811440026,-229.85488048,0.00019565,2]
[315096892,1708811440040,-500.0,0.00019565,2]
[315096893,1708811440051,-500.0,0.00019565,2]
[315096894,1708811440062,-500.0,0.00019565,2]
[315096895,1708811440073,-500.0,0.00019565,2]
[315096896,1708811440085,-500.0,0.00019565,2]
[315096897,1708811440099,-500.0,0.00019565,2]
[315096898,1708811440112,-500.0,0.00019565,2]
[315096899,1708811440124,-450.93828429,0.00019565,2]
[315096900,1708811440136,-500.0,0.00019565,2]
[315096901,1708811440149,-355.60770815,0.00019565,2]
[315096902,1708811440162,-500.0,0.00019565,2]
[315096903,1708811440175,-500.0,0.00019565,2]
[315096904,1708811440189,-617.7387389,0.00019565,2]
[315096905,1708811440203,-500.0,0.00019565,2]
[315096906,1708811440215,-500.0,0.00019565,2]
[315096907,1708811440227,-500.0,0.00019565,2]
[315096908,1708811440238,-500.0,0.00019565,2]
[315096909,1708811440248,-500.0,0.00019565,2]
[315096910,1708811440259,-390.91557995,0.00019565,2]
[315096911,1708811440270,-500.0,0.00019565,2]
[315096912,1708811440283,-500.0,0.00019565,2]
[315096913,1708811440293,-500.0,0.00019565,2]
[315096914,1708811440304,-500.0,0.00019565,2]
[315096915,1708811440315,-500.0,0.00019565,2]
[315096916,1708811440326,-500.0,0.00019565,2]
[315096917,1708811440336,-500.0,0.00019565,2]
[315096918,1708811440347,-500.0,0.00019565,2]
[315096919,1708811440359,-500.0,0.00019565,2]
[315096920,1708811440370,-500.0,0.00019565,2]
[315096921,1708811440381,-500.81811233,0.00019565,2]
[315096922,1708811440391,-500.0,0.00019565,2]
[315096923,1708811440401,-500.0,0.00019565,2]
[315096924,1708811440412,-500.0,0.00019565,2]
[315096925,1708811440423,-500.0,0.00019565,2]
[315096926,1708811440434,-500.0,0.00019565,2]
[315096927,1708811440444,-500.0,0.00019565,2]
[315096928,1708811440454,-500.0,0.00019565,2]
[315096929,1708811440465,-500.0,0.00019565,2]
[315096930,1708811440477,-500.0,0.00019565,2]
[315096931,1708811440489,-500.0,0.00019565,2]
[315096932,1708811440499,-403.29293715,0.00019565,2]
[315096933,1708811440511,-500.0,0.00019565,2]
[315096934,1708811440522,-500.0,0.00019565,2]
[315096935,1708811440536,-1214.08,0.00019565,2]
[315096936,1708811440547,-500.0,0.00019565,2]
[315096937,1708811440559,-500.0,0.00019565,2]
[315096938,1708811440570,-500.0,0.00019565,2]
[315096939,1708811440583,-500.0,0.00019565,2]
[315096940,1708811440596,-500.0,0.00019565,2]
[315096941,1708811440607,-624.26,0.00019565,2]
[315096942,1708811440618,-500.0,0.00019565,2]
[315096943,1708811440631,-500.0,0.00019565,2]
[315096944,1708811440642,-500.0,0.00019565,2]
[315096945,1708811440654,-500.0,0.00019565,2]
[315096946,1708811440666,-500.0,0.00019565,2]
[315096947,1708811440677,-1185.72,0.00019565,2]
[315096948,1708811440689,-500.0,0.00019565,2]
[315096949,1708811440699,-500.0,0.00019565,2]
[315096950,1708811440710,-500.0,0.00019565,2]
[315096951,1708811440721,-500.0,0.00019565,2]
[315096952,1708811440732,-500.0,0.00019565,2]
[315096953,1708811440743,-545.57,0.00019565,2]
[315096954,1708811440754,-500.0,0.00019565,2]
[315096955,1708811440764,-500.0,0.00019565,2]
[315096956,1708811440775,-500.0,0.00019565,2]
[315096957,1708811440787,-270.72050512,0.00019565,2]
[315096958,1708811440798,-500.0,0.00019565,2]
[315096959,1708811440809,-500.0,0.00019565,2]
[315096960,1708811440820,-545.07,0.00019565,2]
[315096962,1708811440831,-500.0,0.00019565,2]
[315096963,1708811440842,-500.0,0.00019565,2]
[315096964,1708811440853,-500.0,0.00019565,2]
[315096965,1708811440864,-500.0,0.00019565,2]
[315096966,1708811440874,-500.0,0.00019565,2]
[315096967,1708811440885,-500.0,0.00019565,2]
[315096968,1708811440895,-500.0,0.00019565,2]
[315096969,1708811440906,-500.0,0.00019565,2]
[315096971,1708811440916,-500.0,0.00019565,2]
[315096973,1708811440927,-500.0,0.00019565,2]
[315096975,1708811440937,-500.0,0.00019565,2]
[315096977,1708811440948,-500.0,0.00019565,2]
[315096978,1708811440958,-500.0,0.00019565,2]
[315096979,1708811440969,-500.0,0.00019565,2]
[315096980,1708811440980,-1043.59,0.00019565,2]
[315096981,1708811440990,-1352.89,0.00019565,2]
[315096982,1708811441000,-500.0,0.00019565,2]
[315096983,1708811441010,-492.92581817,0.00019565,2]
[315096984,1708811441021,-500.68397729,0.00019565,2]
[315096985,1708811441033,-500.0,0.00019565,2]
[315096986,1708811441044,-500.0,0.00019565,2]
[315096987,1708811441182,-500.0,0.00019565,2]
[315096988,1708811441196,-500.0,0.00019565,2]
[315096989,1708811441206,-369.70780229,0.00019565,2]
[315096990,1708811441215,-500.28194284,0.00019565,2]
[315096991,1708811441225,-500.0,0.00019565,2]
[315096992,1708811441234,-500.0,0.00019565,2]
[315096993,1708811441243,-500.0,0.00019565,2]
[315096994,1708811441252,-4508.58,0.00019565,2]
[315096995,1708811441262,-500.0,0.00019565,2]
[315096996,1708811441271,-500.0,0.00019565,2]
[315096997,1708811441283,-1885.33,0.00019565,2]
[315096998,1708811441293,-500.0,0.00019565,2]
[315096999,1708811441302,-500.0,0.00019565,2]
[315097000,1708811441311,-500.0,0.00019565,2]
[315097001,1708811441321,-500.0,0.00019565,2]
[315097002,1708811441330,-936.35,0.00019565,2]
[315097003,1708811441340,-500.0,0.00019565,2]
[315097004,1708811441349,-483.94546259,0.00019566,2]
[315097005,1708811441359,-551.55464271,0.00019566,2]
[315097006,1708811441369,-500.0,0.00019566,2]
[315097007,1708811441378,-500.0,0.00019566,2]
[315097008,1708811441388,-500.0,0.00019566,2]
[315097009,1708811441397,-500.0,0.00019566,2]
[315097010,1708811441406,-500.0,0.00019566,2]
[315097011,1708811441415,-500.0,0.00019566,2]
[315097012,1708811441424,-529.71300492,0.00019566,2]
[315097013,1708811441434,-500.0,0.00019566,2]
[315097014,1708811441443,-500.0,0.00019566,2]
[315097015,1708811441453,-500.0,0.00019566,2]
[315097016,1708811441463,-500.0,0.00019566,2]
[315097017,1708811441472,-500.0,0.00019566,2]
[315097018,1708811441481,-500.0,0.00019566,2]
[315097019,1708811441491,-500.0,0.00019566,2]
[315097020,1708811441500,-500.0,0.00019566,2]
[315097021,1708811441509,-497.28656827,0.00019566,2]
[315097022,1708811441519,-500.0,0.00019566,2]
[315097023,1708811441530,-500.0,0.00019566,2]
[315097024,1708811441539,-500.0,0.00019567,2]
[315097025,1708811441549,-500.0,0.00019567,2]
[315097026,1708811441558,-500.0,0.00019567,2]
[315097027,1708811441568,-500.0,0.00019567,2]
[315097028,1708811441577,-999.35260013,0.00019567,2]
[315097029,1708811441588,-500.0,0.00019568,2]
[315097030,1708811441597,-500.0,0.00019568,2]
[315097031,1708811441607,-500.0,0.00019568,2]
[315097032,1708811441617,-500.0,0.00019568,2]
[315097033,1708811441629,-500.0,0.00019568,2]
[315097034,1708811441638,-166.666666,0.00019627,2]
[315097035,1708811441648,-317.58428736,0.00019736,2]
[315097036,1708811441657,-500.0,0.00019833,2]
[315097037,1708811441667,-500.0,0.00019833,2]
[315097038,1708811441676,-500.0,0.00019833,2]
[315097039,1708811441686,-500.0,0.00019833,2]
[315097040,1708811441696,-500.0,0.00019833,2]
[315097044,1708811441914,-245.03063393,0.00019833,2]
[315097046,1708811441924,-500.0,0.00019833,2]
[315097047,1708811441933,-500.0,0.00019833,2]
[315097049,1708811441942,-415.64115032,0.00019833,2]
[315097050,1708811441951,-500.0,0.00019833,2]
[315097051,1708811441961,-500.0,0.00019833,2]
[315097052,1708811441970,-500.0,0.00019833,2]
[315097053,1708811441978,-500.0,0.00019833,2]
[315097054,1708811441987,-500.0,0.00019833,2]
[315097055,1708811441997,-500.0,0.00019833,2]
[315097056,1708811442006,-500.0,0.00019833,2]
[315097058,1708811442015,-500.0,0.00019833,2]
[315097060,1708811442023,-500.0,0.00019833,2]
[315097061,1708811442033,-500.0,0.00019833,2]
[315097062,1708811442042,-500.0,0.00019833,2]
[315097063,1708811442051,-500.0,0.00019833,2]
[315097064,1708811442060,-500.0,0.00019833,2]
[315097065,1708811442070,-500.0,0.00019833,2]
[315097066,1708811442080,-500.0,0.00019833,2]
[315097067,1708811442089,-500.0,0.00019833,2]
[315097068,1708811442098,-500.0,0.00019833,2]
[315097069,1708811442108,-500.0,0.00019833,2]
[315097070,1708811442117,-500.0,0.00019833,2]
[315097071,1708811442127,-500.0,0.00019833,2]
[315097072,1708811442137,-500.0,0.00019833,2]
[315097073,1708811442146,-265.73842084,0.00019833,2]
[315097074,1708811442155,-500.0,0.00019833,2]
[315097075,1708811442165,-500.0,0.00019833,2]
[315097076,1708811442174,-500.0,0.00019833,2]
[315097077,1708811442183,-500.0,0.00019833,2]
[315097078,1708811442192,-154.6885695,0.00019833,2]
[315097079,1708811442201,-500.0,0.00019833,2]
[315097080,1708811442210,-500.0,0.00019833,2]
[315097081,1708811442220,-500.0,0.00019833,2]
[315097082,1708811442229,-500.0,0.00019833,2]
[315097083,1708811442238,-500.0,0.00019833,2]
[315097084,1708811442247,-500.0,0.00019833,2]
[315097085,1708811442256,-500.0,0.00019833,2]
[315097086,1708811442266,-500.0,0.00019833,2]
[315097087,1708811442275,-500.0,0.00019833,2]
[315097088,1708811442286,-500.0,0.00019833,2]
[315097089,1708811442295,-500.0,0.00019833,2]
[315097090,1708811442304,-500.0,0.00019833,2]
[315097091,1708811442313,-500.0,0.00019833,2]
[315097092,1708811442322,-500.0,0.00019833,2]
[315097093,1708811442332,-500.0,0.00019833,2]
[315097094,1708811442342,-500.0,0.00019833,2]
[315097095,1708811442351,-500.0,0.00019833,2]
[315097096,1708811442361,-500.0,0.00019833,2]
[315097097,1708811442370,-500.0,0.00019833,2]
[315097098,1708811442380,-500.0,0.00019833,2]
[315097099,1708811442390,-500.0,0.00019833,2]
[315097100,1708811442399,-500.0,0.00019833,2]
[315097101,1708811442409,-500.0,0.00019833,2]
[315097102,1708811442419,-500.0,0.00019833,2]
[315097103,1708811442428,-500.0,0.00019833,2]
[315097104,1708811442437,-500.0,0.00019833,2]
[315097105,1708811442446,-500.0,0.00019833,2]
[315097106,1708811442456,-500.0,0.00019833,2]
[315097107,1708811442465,-500.0,0.00019833,2]
[315097108,1708811442475,-500.0,0.00019833,2]
[315097109,1708811442484,-500.0,0.00019833,2]
[315097110,1708811442493,-500.0,0.00019833,2]
[315097111,1708811442503,-500.0,0.00019833,2]
[315097112,1708811442512,-500.0,0.00019838,2]
[315097113,1708811442521,-500.0,0.00019838,2]
[315097114,1708811442534,-500.0,0.00019838,2]
[315097115,1708811442543,-159.48453292,0.00019838,2]
[315097116,1708811442554,-500.0,0.00019838,2]
[315097117,1708811442563,-684.25,0.00019838,2]
[315097118,1708811442573,-500.0,0.00019838,2]
[315097119,1708811442588,-389.05948452,0.00019838,2]
[315097120,1708811442598,-787.46,0.00019838,2]
[315097121,1708811442607,-500.0,0.00019838,2]
[315097122,1708811442617,-500.0,0.00019838,2]
[315097123,1708811442628,-5695.56,0.00019838,2]
[315097124,1708811442637,-733.68,0.00019838,2]
[315097125,1708811442646,-500.0,0.00019838,2]
[315097126,1708811442656,-601.65465756,0.00019838,2]
[315097127,1708811442666,-501.25023183,0.00019838,2]
[315097128,1708811442676,-500.0,0.00019838,2]
[315097129,1708811442685,-821.94,0.00019838,2]
[315097130,1708811442695,-500.0,0.00019838,2]
[315097131,1708811442706,-6511.95,0.00019838,2]
[315097132,1708811442716,-500.0,0.00019838,2]
[315097133,1708811442726,-500.0,0.00019838,2]
[315097134,1708811442736,-500.0,0.00019838,2]
[315097135,1708811442745,-500.0,0.00019838,2]
[315097136,1708811442755,-500.0,0.00019838,2]
[315097137,1708811442765,-500.0,0.00019838,2]
[315097138,1708811442774,-603.53,0.00019838,2]
[315097139,1708811442789,-500.0,0.00019838,2]
[315097140,1708811442799,-500.0,0.00019838,2]
[315097141,1708811442808,-3284.78,0.00019838,2]
[315097142,1708811442818,-500.0,0.00019838,2]
[315097143,1708811442828,-5628.84,0.00019838,2]
[315097144,1708811442837,-500.0,0.00019838,2]
[315097145,1708811442846,-1312.47,0.00019838,2]
[315097146,1708811442856,-500.0,0.00019838,2]
[315097147,1708811442866,-768.71,0.00019838,2]
[315097148,1708811442875,-1240.38,0.00019838,2]
[315097149,1708811442884,-500.0,0.00019838,2]
[315097150,1708811442894,-500.0,0.00019838,2]
[315097151,1708811442903,-234.72141157,0.00019839,2]
[315097152,1708811442912,-550.19075802,0.00019839,2]
[315097153,1708811442922,-500.0,0.00019839,2]
[315097154,1708811442931,-500.0,0.00019839,2]
[315097155,1708811442941,-614.57,0.00019839,2]
[315097156,1708811442950,-500.0,0.00019839,2]
[315097157,1708811442959,-500.0,0.00019839,2]
[315097158,1708811442968,-585.43173339,0.00019839,2]
[315097159,1708811442977,-500.0,0.00019839,2]
[315097160,1708811442986,-492.29549158,0.00019839,2]
[315097161,1708811442996,-502.20275581,0.00019839,2]
[315097162,1708811443005,-1038.2,0.00019839,2]
[315097163,1708811443014,-500.0,0.00019839,2]
[315097164,1708811443023,-500.0,0.00019839,2]
[315097165,1708811443035,-500.0,0.00019839,2]
[315097166,1708811443044,-500.0,0.00019839,2]
[315097167,1708811443053,-500.0,0.00019839,2]
[315097168,1708811443062,-500.0,0.00019839,2]
[315097169,1708811443071,-358.28980292,0.00019839,2]
[315097170,1708811443081,-500.0,0.00019839,2]
[315097171,1708811443090,-500.0,0.00019839,2]
[315097172,1708811443100,-500.0,0.00019839,2]
[315097173,1708811443109,-500.0,0.00019839,2]
[315097175,1708811443118,-500.0,0.00019839,2]
[315097176,1708811443127,-500.0,0.00019839,2]
[315097177,1708811443136,-500.0,0.00019839,2]
[315097178,1708811443145,-500.0,0.00019839,2]
[315097179,1708811443154,-500.0,0.00019839,2]
[315097180,1708811443163,-500.0,0.00019839,2]
[315097181,1708811443172,-523.88,0.00019839,2]
[315097182,1708811443182,-500.0,0.00019839,2]
[315097183,1708811443190,-500.0,0.00019839,2]
[315097185,1708811443199,-500.0,0.00019839,2]
[315097186,1708811443209,-500.0,0.00019839,2]
[315097187,1708811443218,-500.0,0.00019839,2]
[315097188,1708811443227,-500.0,0.00019839,2]
[315097189,1708811443236,-201.96,0.00019839,2]
[315097190,1708811443246,-500.0,0.00019839,2]
[315097191,1708811443255,-500.0,0.00019839,2]
[315097192,1708811443264,-1214.08,0.00019839,2]
[315097193,1708811443273,-500.0,0.00019839,2]
[315097194,1708811443286,-624.26,0.00019839,2]
[315097195,1708811443295,-641.78533481,0.00019839,2]
[315097196,1708811443304,-1185.72,0.00019839,2]
[315097197,1708811443314,-500.0,0.00019839,2]
[315097198,1708811443323,-500.0,0.00019839,2]
[315097199,1708811443332,-500.0,0.00019839,2]
[315097200,1708811443342,-312.24134907,0.00019839,2]
[315097201,1708811443351,-545.07,0.00019839,2]
[315097202,1708811443361,-500.0,0.00019839,2]
[315097203,1708811443370,-500.0,0.00019839,2]
[315097204,1708811443379,-500.0,0.00019839,2]
[315097205,1708811443388,-283.48,0.00019839,2]
[315097206,1708811443398,-500.0,0.00019839,2]
[315097207,1708811443407,-500.0,0.00019839,2]
[315097208,1708811443417,-500.0,0.00019839,2]
[315097209,1708811443426,-1043.59,0.00019839,2]
[315097210,1708811443435,-1352.89,0.00019839,2]
[315097211,1708811443445,-500.0,0.00019839,2]
[315097212,1708811443454,-500.0,0.00019839,2]
[315097213,1708811443464,-500.0,0.00019839,2]
[315097215,1708811443473,-4508.58,0.00019839,2]
[315097217,1708811443483,-500.0,0.00019839,2]
[315097218,1708811443493,-1885.33,0.00019839,2]
[315097219,1708811443503,-500.0,0.00019839,2]
[315097220,1708811443513,-936.35,0.00019839,2]
[315097221,1708811443522,-500.0,0.00019839,2]
[315097222,1708811443533,-500.0,0.0001984,2]
[315097223,1708811443542,-500.0,0.0001984,2]
[315097224,1708811443551,-500.0,0.0001984,2]
[315097225,1708811443560,-500.0,0.0001984,2]
[315097226,1708811443569,-500.0,0.0001984,2]
[315097227,1708811443579,-500.0,0.0001984,2]
[315097228,1708811443589,-500.0,0.00019842,2]
[315097229,1708811443599,-500.0,0.00019842,2]
[315097230,1708811443608,-500.0,0.00019842,2]
[315097231,1708811443617,-500.0,0.00020013,2]
[315097232,1708811443630,-500.0,0.00020013,2]
[315097233,1708811443640,-279.3313356,0.00020013,2]
[315097234,1708811443650,-500.0,0.00020013,2]
[315097235,1708811443660,-317.58428732,0.00020051,2]
[315097236,1708811443670,-166.666666,0.00020076,2]
[315097237,1708811443680,-500.0,0.00020112,2]